bitfinex/quotes_BTCUSD_20250829
["timestamp","ask_amount","ask_price","bid_price","bid_amount"]
[1756428452695,0.35661999,112480.0,112470.0,0.00313]
[1756428452897,0.35724999,112480.0,112460.0,0.42150629]
[1756428453467,0.35647678,112470.0,112460.0,0.08829632]
[1756428453665,0.35710678,112470.0,112460.0,0.24061632]
[1756428453842,0.35710678,112470.0,112460.0,0.08829632]
[1756428454047,0.35647678,112470.0,112460.0,0.42371733]
[1756428454971,0.53442959,112480.0,112460.0,0.42371733]
[1756428455172,0.62272591,112480.0,112460.0,0.09451632]
[1756428455377,0.62272591,112480.0,112460.0,0.42467571]
[1756428455818,0.62272591,112480.0,112460.0,0.09451632]
[1756428456053,0.00063,112470.0,112460.0,0.24583632]
[1756428456202,0.64946091,112480.0,112460.0,0.42367733]
[1756428456406,0.38335499,112480.0,112460.0,0.42367733]
[1756428456627,0.38335499,112480.0,112470.0,0.00313]
[1756428457243,0.38335499,112480.0,112470.0,0.00209]
[1756428457392,0.38335499,112480.0,112470.0,0.00522]
[1756428457799,0.56179561,112480.0,112460.0,0.09142632]
[1756428457997,0.35647678,112470.0,112460.0,0.24366632]
[1756428458217,0.35647678,112470.0,112460.0,0.24575632]
[1756428458441,0.35710678,112470.0,112460.0,0.24575632]
[1756428459448,0.35710678,112470.0,112460.0,0.24675632]
[1756428460785,0.35710678,112470.0,112460.0,0.24671632]
[1756428460994,0.43733597,112470.0,112460.0,0.24149632]
[1756428461826,0.43733597,112470.0,112460.0,0.24145632]
[1756428462029,0.35710678,112470.0,112460.0,0.15525]
[1756428462246,0.35647678,112470.0,112460.0,0.15838]
[1756428462907,0.71336561,112480.0,112460.0,0.33622099]
[1756428463113,0.71336561,112480.0,112460.0,0.15838]
[1756428464113,0.00063,112470.0,112460.0,0.15738]
[1756428465488,0.71320561,112480.0,112460.0,0.15738]
[1756428465658,0.82681874,112480.0,112460.0,0.15738]
[1756428466018,0.82681874,112480.0,112460.0,0.15838]
[1756428466449,0.73852242,112480.0,112460.0,0.33622029]
[1756428466977,0.51473404,112480.0,112460.0,0.33622029]
[1756428467218,0.69254466,112480.0,112460.0,0.33522029]
[1756428467422,0.69254466,112480.0,112460.0,0.15738]
[1756428467835,0.71928066,112480.0,112460.0,0.15738]
[1756428468310,0.71928066,112480.0,112460.0,0.33522089]
[1756428468499,0.73840243,112480.0,112460.0,0.33522089]
[1756428468723,0.82669875,112480.0,112460.0,0.15738]
[1756428468843,0.53493197,112470.0,112460.0,0.15509]
[1756428469653,0.35710678,112470.0,112460.0,0.15509]
[1756428470104,0.53493306,112470.0,112450.0,0.26972]
[1756428470300,0.35647678,112460.0,112450.0,0.68779314]
[1756428470501,0.35647678,112460.0,112450.0,0.68986314]
[1756428470845,0.62259938,112470.0,112450.0,0.68986314]
[1756428471036,0.62259938,112470.0,112460.0,0.001]
[1756428471037,0.62883071,112470.0,112460.0,0.001]
[1756428471366,0.61524117,112470.0,112460.0,0.001]
[1756428471567,0.61524117,112470.0,112450.0,0.51029632]
[1756428471765,0.34225724,112460.0,112450.0,0.51029632]
[1756428472037,0.34225724,112460.0,112450.0,0.51236632]
[1756428472174,0.34225724,112460.0,112450.0,0.36008632]
[1756428472524,0.34288724,112460.0,112450.0,0.51332632]
[1756428472736,0.34288724,112460.0,112450.0,0.24662632]
[1756428473524,0.34288724,112460.0,112450.0,0.24562632]
[1756428474073,0.34288724,112460.0,112450.0,0.24662632]
[1756428474804,0.4183226,112470.0,112450.0,0.24662632]
[1756428475006,0.34225724,112460.0,112450.0,0.24662632]
[1756428476254,0.34288724,112460.0,112450.0,0.24662632]
[1756428476655,0.60082398,112460.0,112450.0,0.001]
[1756428476938,0.524703,112460.0,112450.0,0.00609]
[1756428477110,0.34686199,112460.0,112450.0,0.00609]
[1756428477301,0.68911923,112460.0,112450.0,0.00509]
[1756428477478,0.86696024,112460.0,112450.0,0.00509]
[1756428478089,1.01912024,112460.0,112450.0,0.00509]
[1756428478915,1.01912024,112460.0,112450.0,0.00302]
[1756428479466,0.86696024,112460.0,112450.0,0.00509]
[1756428479699,1.01912024,112460.0,112450.0,0.00509]
[1756428480130,1.01912024,112460.0,112450.0,0.00302]
[1756428480333,1.01912024,112460.0,112440.0,0.32991263]
[1756428480536,1.01912024,112460.0,112440.0,0.24335632]
[1756428481200,0.86696024,112460.0,112440.0,0.42122812]
[1756428481411,1.01904024,112460.0,112440.0,0.41820812]
[1756428481584,0.76507932,112460.0,112440.0,0.24033632]
[1756428481743,1.01904024,112460.0,112440.0,0.24335632]
[1756428482205,0.86696024,112460.0,112440.0,0.42122886]
[1756428482404,1.01900024,112460.0,112440.0,0.42122886]
[1756428483258,1.01900024,112460.0,112440.0,0.09131632]
[1756428483495,1.01276825,112460.0,112440.0,0.42118866]
[1756428483723,1.01899458,112460.0,112440.0,0.42118866]
[1756428483895,1.09588092,112460.0,112440.0,0.24331632]
[1756428484097,0.34225724,112450.0,112440.0,0.24331632]
[1756428484300,1.08965459,112460.0,112440.0,0.42118896]
[1756428484790,0.91181358,112460.0,112440.0,0.42118896]
[1756428484990,0.74739742,112460.0,112450.0,0.00302]
[1756428485176,1.01276832,112460.0,112450.0,0.00302]
[1756428485765,1.01276832,112460.0,112440.0,0.42118896]
[1756428486277,1.01276832,112460.0,112440.0,0.42218896]
[1756428486683,1.01276832,112460.0,112440.0,0.42118896]
[1756428490215,1.01276832,112460.0,112440.0,0.24323632]
[1756428490360,0.34225724,112450.0,112440.0,0.24021632]
[1756428490564,0.34225724,112450.0,112440.0,0.42110896]
[1756428490767,1.10031547,112460.0,112440.0,0.42317896]
[1756428491016,0.94839547,112460.0,112440.0,0.24530632]
[1756428491217,1.10031547,112460.0,112440.0,0.24530632]
[1756428491413,0.52074406,112450.0,112440.0,0.00509]
[1756428491614,0.17787264,112440.0,112420.0,0.00302]
[1756428491886,0.8601457,112430.0,112420.0,0.00302]
[1756428492097,0.8601457,112430.0,112420.0,0.15494]
[1756428492297,0.68288724,112430.0,112420.0,0.15494]
[1756428492910,0.68288724,112430.0,112420.0,0.15508321]
[1756428493238,0.68288724,112430.0,112420.0,0.15708321]
[1756428493434,0.68288724,112430.0,112420.0,0.15915321]
[1756428493681,0.8607757,112430.0,112420.0,0.15915321]
[1756428493900,0.8607757,112430.0,112420.0,0.15506321]
[1756428494253,0.8607757,112430.0,112420.0,0.15808321]
[1756428494557,0.8607757,112430.0,112420.0,0.15708321]
[1756428494788,0.68288724,112430.0,112420.0,0.15808321]
[1756428495133,0.68288724,112430.0,112420.0,0.15608321]
[1756428495475,0.68288724,112430.0,112420.0,0.15815321]
[1756428496180,0.8607757,112430.0,112420.0,0.15815321]
[1756428496854,0.68288724,112430.0,112420.0,0.15815321]
[1756428497001,0.8607757,112430.0,112420.0,0.15815321]
[1756428497404,0.68288724,112430.0,112420.0,0.15815321]
[1756428497631,0.69174164,112430.0,112420.0,0.15815321]
[1756428498186,0.8696301,112430.0,112420.0,0.15815321]
[1756428498312,0.8696301,112430.0,112420.0,0.15310321]
[1756428498518,0.8696301,112430.0,112420.0,0.15620321]
[1756428498719,0.8696301,112430.0,112420.0,0.15310321]
[1756428500261,1.0215901,112430.0,112420.0,0.15210321]
[1756428501265,0.69174164,112430.0,112420.0,0.15520321]
[1756428501509,0.69174164,112430.0,112420.0,0.15731321]
[1756428503924,0.3488544,112430.0,112420.0,0.15731321]
[1756428504123,0.3488544,112430.0,112420.0,0.33521749]
[1756428506476,0.69174164,112430.0,112420.0,0.15731321]
[1756428506890,0.69174164,112430.0,112420.0,0.33521749]
[1756428507164,0.3488544,112430.0,112420.0,0.33521749]
[1756428507376,0.69174164,112430.0,112420.0,0.15831321]
[1756428507580,0.69111164,112430.0,112420.0,0.15831321]
[1756428507782,0.69111164,112430.0,112420.0,0.33621749]
[1756428507989,0.34,112430.0,112420.0,0.42451381]
[1756428508407,0.34,112430.0,112420.0,0.69121381]
[1756428508625,0.34,112430.0,112420.0,0.53925381]
[1756428508823,0.34,112430.0,112420.0,0.69121381]
[1756428509031,0.34,112430.0,112420.0,0.69021381]
[1756428509363,0.34,112430.0,112420.0,0.69321381]
[1756428510898,0.34,112430.0,112420.0,0.36334953]
[1756428511089,0.34,112430.0,112420.0,0.69321381]
[1756428511493,0.34,112430.0,112420.0,0.00835321]
[1756428511494,0.68225724,112430.0,112420.0,0.00835321]
[1756428511686,0.68288724,112430.0,112420.0,0.15406321]
[1756428511893,0.77118356,112430.0,112420.0,0.15406321]
[1756428512149,0.77118356,112430.0,112420.0,0.15506321]
[1756428512283,0.77118356,112430.0,112420.0,0.15306321]
[1756428512501,0.77118356,112430.0,112420.0,0.15616321]
[1756428512875,0.68288724,112430.0,112420.0,0.15616321]
[1756428513097,0.34063,112430.0,112420.0,0.15616321]
[1756428513300,0.68288724,112430.0,112420.0,0.15616321]
[1756428513634,0.83480724,112430.0,112420.0,0.15616321]
[1756428514410,0.49255,112430.0,112420.0,0.15827321]
[1756428514615,0.83480724,112430.0,112420.0,0.15827321]
[1756428514862,0.68288724,112430.0,112420.0,0.15827321]
[1756428516664,0.68225724,112430.0,112420.0,0.15827321]
[1756428516845,0.34,112430.0,112420.0,0.3766367]
[1756428517046,0.03569275,112440.0,112430.0,0.17788846]
[1756428517292,0.026746,112440.0,112430.0,0.27139478]
[1756428517711,0.34,112450.0,112430.0,0.27139478]
[1756428517884,0.34621812,112450.0,112440.0,0.33289264]
[1756428518092,0.68847536,112450.0,112440.0,0.15713]
[1756428518393,0.70757688,112450.0,112440.0,0.15713]
[1756428518601,0.70757804,112450.0,112440.0,0.15713]
[1756428520202,0.72417173,112450.0,112440.0,0.15713]
[1756428521014,0.70757804,112450.0,112440.0,0.15713]
[1756428521250,0.90203347,112450.0,112440.0,0.00521]
[1756428521458,0.72417665,112450.0,112440.0,0.00521]
[1756428521637,0.73322162,112450.0,112440.0,0.00521]
[1756428522593,0.91170844,112450.0,112440.0,0.00521]
[1756428523109,0.73385162,112450.0,112440.0,0.00521]
[1756428523326,0.71725301,112450.0,112440.0,0.00521]
[1756428523500,0.80554933,112450.0,112440.0,0.00521]
[1756428523658,0.55285259,112450.0,112440.0,0.00521]
[1756428523859,0.89510983,112450.0,112440.0,0.00521]
[1756428524070,0.53600831,112450.0,112440.0,0.00521]
[1756428524471,0.35815149,112450.0,112440.0,0.00521]
[1756428525351,0.52978903,112450.0,112440.0,0.00521]
[1756428525558,0.53601062,112450.0,112440.0,0.00521]
[1756428527026,0.17787354,112440.0,112420.0,0.6086627]
[1756428527257,0.67205029,112440.0,112420.0,0.54503902]
[1756428527433,0.32979305,112440.0,112420.0,0.69695902]
[1756428527746,0.34225724,112430.0,112420.0,0.69695902]
[1756428527922,0.49417724,112440.0,112420.0,0.69906902]
[1756428528142,0.34225724,112440.0,112430.0,0.00297]
[1756428528348,0.34225724,112440.0,112430.0,0.00504]
[1756428529387,0.49413724,112440.0,112430.0,0.18292846]
[1756428530168,0.18690272,112450.0,112430.0,0.18292846]
[1756428530386,0.68726052,112450.0,112430.0,0.18392846]
[1756428530588,0.52075988,112440.0,112430.0,0.15288]
[1756428530958,0.34288724,112440.0,112430.0,0.001]
[1756428531155,0.14685854,112440.0,112420.0,0.42711902]
[1756428531361,0.14685854,112440.0,112420.0,0.27820902]
[1756428531684,0.14685854,112440.0,112420.0,0.43008902]
[1756428532386,0.14685854,112440.0,112430.0,0.17788846]
[1756428532605,0.29873854,112440.0,112430.0,0.18292846]
[1756428532806,0.14685854,112440.0,112430.0,0.18292846]
[1756428532992,0.29873854,112440.0,112430.0,0.18292846]
[1756428533723,0.14685854,112440.0,112430.0,0.18292846]
[1756428533932,0.14622854,112440.0,112430.0,0.18292846]
[1756428534455,0.14685854,112440.0,112430.0,0.18292846]
[1756428534868,0.14622854,112440.0,112430.0,0.18292846]
[1756428535928,0.34225724,112440.0,112430.0,0.18292846]
[1756428538955,0.34225724,112440.0,112430.0,0.00504]
[1756428539156,0.86301712,112440.0,112420.0,0.26634312]
[1756428539367,0.34225724,112430.0,112420.0,0.33289749]
[1756428539608,0.52075988,112440.0,112420.0,0.33289749]
[1756428539773,0.34225724,112430.0,112420.0,0.33289749]
[1756428539976,0.34288724,112430.0,112420.0,0.33289749]
[1756428540193,0.34288724,112430.0,112420.0,0.33496749]
[1756428540393,0.39294901,112430.0,112420.0,0.33496749]
[1756428540670,0.39231901,112430.0,112420.0,0.33696749]
[1756428540876,0.83413724,112440.0,112430.0,0.17788846]
[1756428541009,0.34,112440.0,112430.0,0.17995846]
[1756428541212,0.86075988,112440.0,112430.0,0.00504]
[1756428543068,0.86175988,112440.0,112430.0,0.00504]
[1756428543440,0.17788846,112430.0,112420.0,0.00014321]
[1756428543676,1.0120257,112430.0,112420.0,0.00014321]
[1756428543961,1.0126557,112430.0,112420.0,0.00014321]
[1756428544301,0.8607757,112430.0,112420.0,0.00014321]
[1756428544487,0.51851846,112430.0,112420.0,0.00014321]
[1756428544838,1.0126557,112430.0,112420.0,0.00114321]
[1756428545191,1.10095202,112430.0,112420.0,0.00114321]
[1756428545390,1.13431496,112430.0,112420.0,0.00214321]
[1756428545595,1.13392496,112430.0,112420.0,0.00214321]
[1756428545812,1.15304821,112430.0,112420.0,0.00214321]
[1756428546020,1.06475189,112430.0,112420.0,0.00214321]
[1756428546197,1.04562864,112430.0,112420.0,0.00114321]
[1756428546398,1.04562864,112430.0,112420.0,0.00014321]
[1756428546948,0.7043714,112430.0,112420.0,0.00014321]
[1756428547101,1.04662864,112430.0,112420.0,0.00014321]
[1756428547304,1.13492496,112430.0,112420.0,0.00014321]
[1756428547502,1.13531496,112430.0,112420.0,0.00014321]
[1756428547926,1.13492496,112430.0,112420.0,0.00014321]
[1756428548170,0.18485294,112430.0,112420.0,0.00518321]
[1756428548422,0.026748,112430.0,112420.0,0.00518321]
[1756428548645,0.179628,112430.0,112420.0,0.18308749]
[1756428549090,0.35751646,112430.0,112420.0,0.00518321]
[1756428549831,0.7004037,112430.0,112420.0,0.00014321]
[1756428551266,0.78870002,112430.0,112420.0,0.00014321]
[1756428552509,1.12870002,112430.0,112420.0,0.00014321]
[1756428552753,1.13530913,112430.0,112420.0,0.00014321]
[1756428552907,1.20370913,112430.0,112420.0,0.00014321]
[1756428553624,1.23008368,112430.0,112420.0,0.00014321]
[1756428554829,1.20327913,112430.0,112420.0,0.00014321]
[1756428555875,1.20327726,112430.0,112420.0,0.00014321]
[1756428556765,1.20327699,112430.0,112420.0,0.00014321]
[1756428560203,1.20327699,112430.0,112420.0,0.00014321]
[1756428565029,1.05143699,112430.0,112420.0,0.00014321]
[1756428565378,1.20327699,112430.0,112420.0,0.00014321]
[1756428566225,1.05143699,112430.0,112420.0,0.00014321]
[1756428566423,1.05143699,112430.0,112420.0,0.00333321]
[1756428566424,1.2032794,112430.0,112420.0,0.00333321]
[1756428566683,1.22238705,112430.0,112420.0,0.00333321]
[1756428567093,1.22238719,112430.0,112420.0,0.00333321]
[1756428567294,1.22238813,112430.0,112420.0,0.00014321]
[1756428571653,1.23898554,112430.0,112420.0,0.00014321]
[1756428572236,1.08714554,112430.0,112420.0,0.00014321]
[1756428572437,1.23894554,112430.0,112420.0,0.00014321]
[1756428573018,1.23894554,112430.0,112420.0,0.00333321]
[1756428573270,1.08714554,112430.0,112420.0,0.00014321]
[1756428573481,1.23894554,112430.0,112420.0,0.00014321]
[1756428573813,1.08714554,112430.0,112420.0,0.00014321]
[1756428574020,1.23894554,112430.0,112420.0,0.00014321]
[1756428574629,1.23894554,112430.0,112420.0,0.00333321]
[1756428574832,0.99884922,112430.0,112420.0,0.00540321]
[1756428575036,1.15064922,112430.0,112420.0,0.00540321]
[1756428576879,1.12783134,112430.0,112420.0,0.00540321]
[1756428577024,1.15067904,112430.0,112420.0,0.00540321]
[1756428577229,1.15004904,112430.0,112420.0,0.00540321]
[1756428577667,1.23834536,112430.0,112420.0,0.00540321]
[1756428577890,1.08654536,112430.0,112420.0,0.00540321]
[1756428578075,1.15004904,112430.0,112420.0,0.00540321]
[1756428578754,0.75196058,112430.0,112420.0,0.00540321]
[1756428578961,0.90372058,112430.0,112420.0,0.18330749]
[1756428579277,0.88710409,112430.0,112420.0,0.18330749]
[1756428581843,0.39308685,112430.0,112420.0,0.18330749]
[1756428581999,0.54484685,112430.0,112420.0,0.18330749]
[1756428582204,0.88710409,112430.0,112420.0,0.18330749]
[1756428583207,1.15391887,112430.0,112420.0,0.00333321]
[1756428583377,0.73534409,112430.0,112420.0,0.18330749]
[1756428583580,0.88710409,112430.0,112420.0,0.18330749]
[1756428583876,0.05308685,112430.0,112420.0,0.18330749]
[1756428584078,0.179508,112430.0,112420.0,0.18330749]
[1756428584394,0.37000524,112430.0,112420.0,0.18330749]
[1756428585017,0.52176524,112430.0,112420.0,0.18330749]
[1756428585336,0.52076524,112430.0,112420.0,0.18430749]
[1756428585481,0.178508,112430.0,112420.0,0.18530749]
[1756428589127,0.34,112440.0,112430.0,0.17788846]
[1756428589365,0.51707433,112440.0,112430.0,0.18277846]
[1756428589562,0.54381933,112440.0,112430.0,0.18277846]
[1756428590282,0.72169197,112440.0,112430.0,0.00489]
[1756428590987,0.7216909,112440.0,112430.0,0.00489]
[1756428591163,0.73829214,112440.0,112430.0,0.00489]
[1756428591584,0.73929214,112440.0,112430.0,0.00489]
[1756428592242,0.5614195,112440.0,112430.0,0.18277846]
[1756428593467,0.5613795,112440.0,112430.0,0.18277846]
[1756428593834,0.39057169,112440.0,112430.0,0.18277846]
[1756428594150,0.519425,112440.0,112430.0,0.18277846]
[1756428594368,0.179425,112440.0,112430.0,0.18277846]
[1756428594583,0.027745,112440.0,112430.0,0.18277846]
[1756428594782,0.001,112440.0,112430.0,0.76501202]
[1756428595350,0.001,112440.0,112430.0,0.61333202]
[1756428595560,0.001,112440.0,112430.0,0.76501202]
[1756428595960,0.19418286,112460.0,112450.0,0.17785682]
[1756428596158,0.21077463,112460.0,112450.0,0.17785682]
[1756428596383,0.19418286,112460.0,112450.0,0.18274682]
[1756428597381,0.19481286,112460.0,112450.0,0.18274682]
[1756428598475,0.37265387,112460.0,112450.0,0.00489]
[1756428598680,0.19481286,112460.0,112450.0,0.18274682]
[1756428599084,0.19581286,112460.0,112450.0,0.18274682]
[1756428599301,0.19581286,112460.0,112450.0,0.17785682]
[1756428600062,0.19581286,112460.0,112450.0,0.17980682]
[1756428600264,0.04350286,112460.0,112450.0,0.52500406]
[1756428600511,0.01676286,112460.0,112450.0,0.27104314]
[1756428600710,0.01676286,112460.0,112450.0,0.61330038]
[1756428601117,0.001,112460.0,112450.0,0.61330038]
[1756428601355,0.001,112460.0,112450.0,0.76494038]
[1756428602569,0.001,112460.0,112450.0,0.42268314]
[1756428602772,0.001,112460.0,112450.0,0.76494038]
[1756428603379,1.03844355,112480.0,112460.0,0.17783688]
[1756428603579,0.86063324,112480.0,112470.0,0.17782519]
[1756428603795,1.03907262,112480.0,112460.0,0.2690732]
[1756428603988,1.12736894,112480.0,112460.0,0.2690732]
[1756428604186,0.34225724,112470.0,112460.0,0.2690732]
[1756428604462,0.34225724,112470.0,112460.0,0.17784101]
[1756428604675,0.34288724,112470.0,112460.0,0.17798422]
[1756428604992,0.34225724,112470.0,112460.0,0.18287422]
[1756428605430,0.1516,112470.0,112460.0,0.18287422]
[1756428605632,0.49448724,112470.0,112460.0,0.17798422]
[1756428606286,1.10325599,112470.0,112460.0,0.00014321]
[1756428606494,1.49093381,112470.0,112460.0,0.00014321]
[1756428606687,1.62104824,112470.0,112460.0,0.00014321]
[1756428606825,1.6987832,112470.0,112460.0,0.00014321]
[1756428607325,1.69778384,112470.0,112460.0,0.00014321]
[1756428607550,1.01426936,112470.0,112460.0,0.00014321]
[1756428607726,1.69878384,112470.0,112460.0,0.00014321]
[1756428608744,1.45849752,112470.0,112460.0,0.00014321]
[1756428608923,1.58689592,112470.0,112460.0,0.00014321]
[1756428609124,1.58728592,112470.0,112460.0,0.00014321]
[1756428609554,1.56091137,112470.0,112460.0,0.00014321]
[1756428609933,1.53375256,112470.0,112460.0,0.00014321]
[1756428610334,1.53336256,112470.0,112460.0,0.00014321]
[1756428610749,0.41018775,112470.0,112460.0,0.00308321]
[1756428610955,0.40956238,112470.0,112460.0,0.18287422]
[1756428611159,0.01656277,112470.0,112460.0,0.18287422]
[1756428611608,0.49381724,112480.0,112460.0,0.18287422]
[1756428611848,1.05081433,112480.0,112460.0,0.18287422]
[1756428612072,1.07755233,112480.0,112470.0,0.00294]
[1756428612269,0.91882524,112480.0,112470.0,0.18271519]
[1756428612475,0.89974295,112480.0,112470.0,0.18271519]
[1756428612685,1.07755233,112480.0,112470.0,0.18271519]
[1756428613217,1.07855233,112480.0,112470.0,0.18271519]
[1756428613499,1.07855233,112480.0,112470.0,0.00489]
[1756428613698,1.07918233,112480.0,112470.0,0.00489]
[1756428614122,1.09826677,112480.0,112470.0,0.18271519]
[1756428614249,0.76826739,112480.0,112470.0,0.18271519]
[1756428614455,0.40692571,112480.0,112470.0,0.18271519]
[1756428614659,0.04430223,112480.0,112470.0,0.18271519]
[1756428614934,0.027738,112480.0,112470.0,0.42257151]
[1756428615333,0.001,112480.0,112470.0,0.42257151]
[1756428615549,0.16738524,112490.0,112480.0,0.17780938]
[1756428615763,0.03239135,112490.0,112480.0,0.18269938]
[1756428616510,0.37464859,112490.0,112480.0,0.18269938]
[1756428617074,0.37464859,112490.0,112480.0,0.18469938]
[1756428617477,0.46357491,112490.0,112480.0,0.17980938]
[1756428617681,0.96480238,112490.0,112480.0,0.002]
[1756428617897,1.06019392,112490.0,112480.0,0.002]
[1756428618098,1.08692892,112490.0,112480.0,0.002]
[1756428618389,1.06055437,112490.0,112480.0,0.002]
[1756428618962,1.21443437,112490.0,112470.0,0.18076477]
[1756428619289,0.52006662,112480.0,112470.0,0.18076477]
[1756428619447,0.5366312,112480.0,112470.0,0.18076477]
[1756428619648,0.51262182,112480.0,112470.0,0.18282477]
[1756428620423,0.49605724,112480.0,112470.0,0.18382477]
[1756428620563,0.1538,112480.0,112470.0,0.18382477]
[1756428620758,0.49605724,112480.0,112470.0,0.18382477]
[1756428621190,0.49668724,112480.0,112470.0,0.18382519]
[1756428621397,0.76279294,112480.0,112470.0,0.001]
[1756428621599,0.78188659,112480.0,112470.0,0.001]
[1756428622372,0.78188659,112480.0,112470.0,0.17882519]
[1756428622568,0.69359027,112480.0,112470.0,0.17882519]
[1756428622980,0.69359027,112480.0,112470.0,0.18180519]
[1756428623468,0.69359027,112480.0,112470.0,0.00398]
[1756428624240,0.69359027,112480.0,112470.0,0.001]
[1756428624779,1.40011214,112480.0,112470.0,0.001]
[1756428624981,1.42684914,112480.0,112470.0,0.001]
[1756428625167,0.51782519,112470.0,112460.0,0.00014321]
[1756428625371,1.26624677,112470.0,112460.0,0.00014321]
[1756428625575,1.26687677,112470.0,112460.0,0.00014321]
[1756428625791,1.28346655,112470.0,112460.0,0.00014321]
[1756428626094,1.37176287,112470.0,112460.0,0.00014321]
[1756428626246,1.35517309,112470.0,112460.0,0.00014321]
[1756428626604,1.32740307,112470.0,112460.0,0.00014321]
[1756428626953,1.75795663,112470.0,112460.0,0.00014321]
[1756428627155,1.78183126,112470.0,112460.0,0.00014321]
[1756428627360,1.41676272,112470.0,112460.0,0.00014321]
[1756428627571,1.42298362,112470.0,112460.0,0.00014321]
[1756428627827,1.43957288,112470.0,112460.0,0.00014321]
[1756428627964,1.44057288,112470.0,112460.0,0.00014321]
[1756428628368,1.59421288,112470.0,112460.0,0.00014321]
[1756428628568,1.62095588,112470.0,112460.0,0.00014321]
[1756428628890,1.96321312,112470.0,112460.0,0.00014321]
[1756428629278,1.62095588,112470.0,112460.0,0.00014321]
[1756428630211,6.98958767,112470.0,112460.0,0.00014321]
[1756428631827,6.70705014,112470.0,112460.0,0.00014321]
[1756428632629,6.89341014,112470.0,112460.0,0.00014321]
[1756428632831,7.02055559,112470.0,112460.0,0.00014321]
[1756428633076,7.04693014,112470.0,112460.0,0.00014321]
[1756428634393,6.89341014,112470.0,112460.0,0.00014321]
[1756428634794,6.52477835,112470.0,112460.0,0.00014321]
[1756428635031,6.58945203,112470.0,112460.0,0.00014321]
[1756428635350,6.24942148,112470.0,112460.0,0.00014321]
[1756428635560,6.58942148,112470.0,112460.0,0.00014321]
[1756428635753,6.58941924,112470.0,112460.0,0.00014321]
[1756428635961,7.0199728,112470.0,112460.0,0.00014321]
[1756428636163,6.99609817,112470.0,112460.0,0.00014321]
[1756428636388,7.07855209,112470.0,112460.0,0.00014321]
[1756428636603,7.05213754,112470.0,112460.0,0.00014321]
[1756428637203,7.07851209,112470.0,112460.0,0.00014321]
[1756428637412,7.04569735,112470.0,112460.0,0.00014321]
[1756428637616,6.89437735,112470.0,112460.0,0.00014321]
[1756428637819,7.0880767,112470.0,112460.0,0.00014321]
[1756428638026,7.11192418,112470.0,112460.0,0.00014321]
[1756428638227,7.11188418,112470.0,112460.0,0.00014321]
[1756428638459,7.06416207,112470.0,112460.0,0.00014321]
[1756428638648,7.06616207,112470.0,112460.0,0.00014321]
[1756428640673,7.09542207,112470.0,112460.0,0.00014321]
[1756428641743,7.06904752,112470.0,112460.0,0.00014321]
[1756428642010,7.14539293,112470.0,112460.0,0.00014321]
[1756428642248,7.19311504,112470.0,112460.0,0.00014321]
[1756428642646,7.1613003,112470.0,112460.0,0.00014321]
[1756428643275,6.93154051,112470.0,112460.0,0.00014321]
[1756428643497,7.09340507,112470.0,112460.0,0.00014321]
[1756428643705,7.17124037,112470.0,112460.0,0.00014321]
[1756428643911,7.16518197,112470.0,112460.0,0.00014321]
[1756428645271,7.18612079,112470.0,112460.0,0.00014321]
[1756428645520,7.18609482,112470.0,112460.0,0.00014321]
[1756428646188,7.03281482,112470.0,112460.0,0.00014321]
[1756428646386,7.16330342,112470.0,112460.0,0.00014321]
[1756428646586,7.18606521,112470.0,112460.0,0.00014321]
[1756428647129,7.03282521,112470.0,112460.0,0.00014321]
[1756428647309,7.18606521,112470.0,112460.0,0.00014321]
[1756428649612,7.16286361,112470.0,112460.0,0.00014321]
[1756428649816,7.00962361,112470.0,112460.0,0.00014321]
[1756428650031,7.16274361,112470.0,112460.0,0.00014321]
[1756428651257,7.17870424,112470.0,112460.0,0.00014321]
[1756428651459,7.17831424,112470.0,112460.0,0.00014321]
[1756428652926,7.16176021,112470.0,112460.0,0.00014321]
[1756428653210,7.17834731,112470.0,112460.0,0.00014321]
[1756428653484,1.2023713,112450.0,112440.0,0.00306]
[1756428653662,6.67403251,112450.0,112440.0,0.00306]
[1756428653838,6.58565619,112450.0,112440.0,0.00509]
[1756428654251,6.61240619,112450.0,112440.0,0.00509]
[1756428654649,6.45948619,112450.0,112440.0,0.00509]
[1756428654861,6.46048619,112450.0,112440.0,0.00509]
[1756428655032,6.27110895,112450.0,112440.0,0.00509]
[1756428655226,5.94975053,112450.0,112440.0,0.00509]
[1756428655432,6.13916777,112450.0,112440.0,0.00509]
[1756428655623,6.29200777,112450.0,112440.0,0.00509]
[1756428656082,6.35145564,112450.0,112440.0,0.00509]
[1756428656273,6.39916944,112450.0,112440.0,0.00509]
[1756428656429,6.35145564,112450.0,112440.0,0.00509]
[1756428657299,6.39916944,112450.0,112440.0,0.00509]
[1756428657487,6.42850612,112450.0,112440.0,0.00509]
[1756428658087,6.39669692,112450.0,112440.0,0.00509]
[1756428659100,6.42453222,112450.0,112440.0,0.00509]
[1756428659637,6.08227498,112450.0,112440.0,0.00509]
[1756428659805,6.42453222,112450.0,112440.0,0.00509]
[1756428660385,6.33720654,112450.0,112440.0,0.00509]
[1756428660597,0.9949493,112450.0,112440.0,0.00509]
[1756428661031,0.97909825,112450.0,112440.0,0.00509]
[1756428661234,1.36906929,112450.0,112440.0,0.00509]
[1756428661440,6.33720654,112450.0,112440.0,0.00509]
[1756428661698,6.42550286,112450.0,112440.0,0.00509]
[1756428663788,6.08324562,112450.0,112440.0,0.00306]
[1756428663992,0.34,112430.0,112410.0,0.34225724]
[1756428664195,0.40576198,112430.0,112420.0,0.00203]
[1756428664400,0.55892198,112430.0,112420.0,0.00203]
[1756428664576,0.55892198,112430.0,112420.0,0.00509]
[1756428664848,0.6300315,112430.0,112420.0,0.00509]
[1756428665351,0.63007,112430.0,112420.0,0.00809]
[1756428665594,0.63007,112430.0,112420.0,0.35034724]
[1756428667170,0.63007,112430.0,112420.0,0.00909]
[1756428667380,0.63007,112430.0,112420.0,0.35134724]
[1756428667590,0.63007,112430.0,112420.0,0.35034724]
[1756428667810,0.63007,112430.0,112420.0,0.34734724]
[1756428668245,0.66194349,112430.0,112420.0,0.00609]
[1756428669185,0.66194349,112430.0,112420.0,0.34834724]
[1756428669390,0.66194349,112430.0,112420.0,0.34734724]
[1756428669587,0.66294349,112430.0,112420.0,0.34734724]
[1756428669861,0.84083195,112430.0,112420.0,0.00509]
[1756428670074,0.68931804,112430.0,112420.0,0.00509]
[1756428671917,0.46542297,112430.0,112420.0,0.34734724]
[1756428672120,0.59459785,112430.0,112420.0,0.52525152]
[1756428672307,0.59459785,112430.0,112420.0,0.34734724]
[1756428672550,0.6185343,112430.0,112420.0,0.34734724]
[1756428672754,0.6185343,112430.0,112420.0,0.52525152]
[1756428672948,0.4654543,112430.0,112420.0,0.52525152]
[1756428673158,0.58666081,112430.0,112420.0,0.52525152]
[1756428673358,0.58666081,112430.0,112420.0,0.34734724]
[1756428674010,0.58566081,112430.0,112420.0,0.52525152]